Cogmind - Beta 14 @@@ ROGUE MODE // 2024.09.03 @ 20:01:19 Player: DrZlooooo Result: Self-destructed Performance ------------- Evolutions (2) 1000 Regions Visited (4) 800 Robots Destroyed (45) 225 Value Destroyed (1224) 1224 Prototype IDs (2) 40 Alien Tech Used (0) 0 Bonus (-29) -29 TOTAL SCORE: 3260 Bonus ------- Friendly Fire -29 Cogmind --------- Core Integrity 284/550 Matter 300/300 Energy 275/275 System Corruption 0% Temperature Cool (9) Movement Core (200) Ox3 Location -8/Materials Parts ------- > --- POWER (1) -------- Deuterium Engine > --- PROPULSION (4) --- (None) > --- UTILITY (4) ------ Improved Heat Sink Improved Sensor Array Hacking Suite > --- WEAPON (2) ------- (None) > --- INVENTORY (5) ---- Deuterium Engine Deuterium Engine Light Deuterium Engine Heat Sink Flak Cannon Peak State ------------ > --- POWER ------------ Deuterium Engine > --- PROPULSION ------- Aluminum Leg Myomer Leg > --- UTILITY ---------- Cooling System Experimental Sensor Array Scrap Shield > --- WEAPON ----------- Subdweller Laser Battle Rifle > --- INVENTORY -------- Deuterium Engine Deuterium Engine Deuterium Engine Subdweller Beam Cannon [Rating: 31] Favorites ----------- Power Light Ion Engine Engine Light Ion Engine Propulsion Aluminum Leg Treads Light Treads Leg Aluminum Leg Utility Cooling System Device Cooling System Storage Medium Matter Pod Hackware Hacking Suite Protection Light Armor Plating Weapon EM Pulse Gun Energy Gun EM Pulse Gun Energy Cannon Subdweller Beam Cannon Ballistic Gun Light Assault Rifle Launcher Rocket Launcher Build | -11 -10 -10 -10 -8 ------- Run | Yrd Mat Min Sub Mat Slots Evolved 4 | . . . . 4 Power . | . . . . . Propulsion 2 | . . . . 2 Utility 2 | . . . . 2 Weapon . | . . . . . Parts Attached 45 | 7 2 2 7 27 Power 6 | 1 . . 1 4 Engine 6 | 1 . . 1 4 Core . | . . . . . Reactor . | . . . . . Propulsion 13 | 2 . . 2 9 Treads 1 | . . . . 1 Leg 12 | 2 . . 2 8 Wheel . | . . . . . Hover . | . . . . . Flight . | . . . . . Utility 12 | 2 1 2 . 7 Device 8 | 1 1 2 . 4 Storage 1 | 1 . . . . Processor . | . . . . . Hackware 1 | . . . . 1 Protection 2 | . . . . 2 Artifact . | . . . . . Weapon 14 | 2 1 . 4 7 Energy Gun 6 | 2 . . 1 3 Energy Cannon 1 | . . . . 1 Ballistic Gun 5 | . 1 . 1 3 Ballistic Cannon . | . . . . . Launcher 2 | . . . 2 . Special Weapon . | . . . . . Impact Weapon . | . . . . . Slashing Weapon . | . . . . . Piercing Weapon . | . . . . . Special Melee Weapon . | . . . . . Unidentified Prototypes 2 | . . 1 . 1 Parts Lost 20 | . . . 6 14 Power 1 | . . . 1 . Propulsion 9 | . . . 2 7 Utility 4 | . . . . 4 Weapon 6 | . . . 3 3 Highest Loss Streak 6 | . . . 3 6 To Critical Strikes . | . . . . . Average Slot Usage (%) 91 | . 99 100 96 80 Engine 12 | . 14 14 14 9 Leg 27 | . 28 28 27 26 Device 24 | . 26 28 28 19 Protection 2 | . . . . 6 Energy Gun 11 | . 23 14 8 8 Ballistic Gun 10 | . 4 14 10 8 Launcher 1 | . . . 5 . Peak Build Rating 31 | 9 10 16 25 31 Average Rating 17 | 5 9 15 20 22 On Entrance 12 | . 9 10 16 25 Naked Turns . | . . . . . Heaviest Build 36 | 10 10 9 13 36 Greatest Support 60 | 20 20 20 35 60 Greatest Overweight (x) 1 | . . . 1 1 Average Overweight (x) . | . . . . . Largest Inventory Capacity 5 | 5 5 5 5 5 Average Capacity 5 | 5 5 5 5 5 Most Carried 5 | 1 5 5 5 5 Average Carried 4 | . 4 4 4 4 Final Capacity 5 | 5 5 5 5 5 Final Carried 5 | 1 5 5 5 5 Class Distribution -------------------- 66% | Mutant 33% | Scavenger-Mutant Dominant Class ---------------- Mutant | -10/Materials Mutant | -10/Mines Mutant | -10/Subcaves Scavenger-Mutant | -8/Materials Resources | -11 -10 -10 -10 -8 ----------- Run | Yrd Mat Min Sub Mat Matter Collected 1041 | 318 22 6 157 538 Remotely . | . . . . . Salvage Created 1460 | 148 99 37 129 1047 Parts 105 | 15 13 5 10 62 Haulers Intercepted 1 | . . . . 1 Recyclers Shooed 1 | . . 1 . . Parts Field Recycled . | . . . . . Retrieved Matter . | . . . . . Parts Self-Destructed 9 | . . . 9 . Prevented . | . . . . . Kills | -11 -10 -10 -10 -8 ------- Run | Yrd Mat Min Sub Mat Combat Hostiles Destroyed 31 | 1 . 3 6 21 Guns 21 | 1 . 3 1 16 Cannons 5 | . . . . 5 AOE 5 | . . . 5 . Classes Destroyed 12 | 3 2 1 1 5 Worker 2 | 1 . . . 1 Builder 3 | . 3 . . . Tunneler 4 | 4 . . . . Hauler 1 | . . . . 1 Recycler 1 | . . . . 1 Watcher 3 | . 1 . . 2 Swarmer 9 | . . 3 . 6 Grunt 8 | 1 . . . 7 Duelist 1 | . . . . 1 Sentry 5 | . . . . 5 Hunter 2 | . . . . 2 Subdweller 6 | . . . 6 . Best Kill Streak 6 | 5 2 3 3 6 Combat Bots Only 6 | 1 . 3 3 6 Max Kills in Single Turn 2 | 1 1 1 2 2 Gunslinging . | . . . . . Exploded 2 | . . . 2 . Melee . | . . . . . Uniques/NPCs Destroyed . | . . . . . Combat | -11 -10 -10 -10 -8 -------- Run | Yrd Mat Min Sub Mat Hostile Shots Fired 214 | 2 . 11 26 175 Missed 55 | . . 1 11 43 Damage Taken 2679 | 23 . 83 529 2044 Core 379 | . . . 113 266 Absorbed by Shields . | . . . . . Core Remaining (%) 77 | 100 . . 54 . Volleys Fired 131 | 10 6 6 23 86 Largest 2 | 2 2 2 2 2 Hottest 112 | 90 90 60 63 112 Shots Fired 236 | 20 12 12 31 161 Gun 200 | 20 12 12 16 140 Cannon 21 | . . . . 21 Launcher 15 | . . . 15 . Special . | . . . . . Kinetic 93 | . 4 6 11 72 Thermal 101 | 10 2 . . 89 Explosive 15 | . . . 15 . Electromagnetic 27 | 10 6 6 5 . Robot Hit Streak 21 | 8 4 2 9 21 Robot Miss Streak 4 | 2 3 2 1 4 Penetration Max 1 | . . . . 1 Secondary Targets 1 | . . . . 1 Max Gunslinging Chain 1 | . . . . 1 Shots Hit Robots 147 | 12 6 5 26 98 Core Hits 74 | 6 4 4 14 46 Critical Kills . | . . . . . Critical Parts Destroyed . | . . . . . Critical Strikes 4 | 2 . . . 2 Burn 4 | 2 . . . 2 Melee Attacks . | . . . . . Impact . | . . . . . Slashing . | . . . . . Piercing . | . . . . . Sneak Attacks . | . . . . . Combat Hostiles . | . . . . . Follow-up Attacks . | . . . . . Damage Inflicted 3196 | 197 80 70 968 1881 Guns 1801 | 157 80 46 169 1349 Cannons 498 | . . . . 498 Explosions 839 | 40 . . 799 . Melee . | . . . . . Ramming 58 | . . 24 . 34 Kinetic 956 | . 19 24 123 790 Thermal 1170 | 100 13 . . 1057 Explosive 799 | . . . 799 . Electromagnetic 213 | 97 48 22 46 . Impact . | . . . . . Slashing . | . . . . . Piercing . | . . . . . Highest Corruption . | . . . . . Average Corruption . | . . . . . Corruption Purged . | . . . . . Corruption Blocked . | . . . . . Overload Shots . | . . . . . Overflow Damage 7 | . . . . 7 Projectiles 7 | . . . . 7 Explosions . | . . . . . Melee . | . . . . . Knockbacks 1 | . . . . 1 Impact 1 | . . . . 1 Kinetic . | . . . . . Secondary . | . . . . . Self-Inflicted Damage 44 | . . . 44 . Shots 2 | . . . 2 . Rammed . | . . . . . Targets Rammed 13 | . . 6 . 7 Kicked 13 | . . 6 . 7 Crushed . | . . . . . Highest Temperature 160 | 160 . . . 47 Average Temperature 37 | 64 . . . 11 Received Heat Transfer 780 | 12 . . 66 702 Siege Activations . | . . . . . Robots Corrupted . | . . . . . Combat Hostiles . | . . . . . Parts Fried . | . . . . . Impact Corruptions . | . . . . . Robots Melted . | . . . . . Combat Hostiles . | . . . . . Parts Melted 9 | 4 . . . 5 Heat Transferred 2492 | 383 37 . . 2072 Parts Sabotaged . | . . . . . Parts Stolen . | . . . . . Parts Stripped . | . . . . . Power Chain Reactions 1 | 1 . . . . Alert | -11 -10 -10 -10 -8 ------- Run | Yrd Mat Min Sub Mat Peak Influence 236 | 45 70 70 . 236 Initial 29 | . 29 27 . . Average 67 | 16 48 29 . 109 Maximum Alert Level 1 | . . . . 1 Low Security (%) 97 | 100 100 100 . 93 Level 1 2 | . . . . 6 Level 2 . | . . . . . Level 3 . | . . . . . Level 4 . | . . . . . Level 5 . | . . . . . High Security . | . . . . . Max Security . | . . . . . Squads Dispatched 9 | . . . . 9 Investigation . | . . . . . Extermination . | . . . . . Reinforcement 1 | . . . . 1 Assault . | . . . . . Garrison 8 | . . . . 8 Intercept . | . . . . . Searches Triggered . | . . . . . Construction Impeded . | . . . . . Haulers Reinforced . | . . . . . Active Scanning Responses . | . . . . . Cargo Convoy Interrupts . | . . . . . Stealth | -11 -10 -10 -10 -8 --------- Run | Yrd Mat Min Sub Mat Distress Signals 5 | . 1 . . 4 Communications Jammed . | . . . . . Distress Signals . | . . . . . Times Spotted 52 | 1 3 3 12 33 Peak Tracking Total 6 | 1 2 3 5 6 Tactical Retreats 1 | . 1 . . . Traps | -11 -10 -10 -10 -8 ------- Run | Yrd Mat Min Sub Mat Traps Triggered . | . . . . . Indirectly . | . . . . . Trap Hack Attempts . | . . . . . Triggered . | . . . . . Disarmed . | . . . . . Reprogrammed . | . . . . . Reused . | . . . . . Traps Extracted . | . . . . . Installed . | . . . . . Triggered 2 | . . . 2 . Machines | -11 -10 -10 -10 -8 ---------- Run | Yrd Mat Min Sub Mat Machines Disabled 3 | . . . . 3 Max in Single Turn 1 | . . . . 1 Machines Repaired . | . . . . . Machines Dismantled . | . . . . . Machines Sabotaged . | . . . . . Overloaded Fab Kills . | . . . . . Hacking | -11 -10 -10 -10 -8 --------- Run | Yrd Mat Min Sub Mat Machines Accessed 2 | . 2 . . . Terminals 2 | . 2 . . . Fabricators . | . . . . . Repair Stations . | . . . . . Recycling Units . | . . . . . Scanalyzers . | . . . . . Garrison Access . | . . . . . Total Hacks 5 | . 5 . . . Successful 2 | . 2 . . . Failed 3 | . 3 . . . Catastrophic . | . . . . . Database Lockouts . | . . . . . Manual . | . . . . . Terminals 5 | . 5 . . . Fabricators . | . . . . . Repair Stations . | . . . . . Recycling Units . | . . . . . Scanalyzers . | . . . . . Garrison Access . | . . . . . Terminal Hacks 2 | . 2 . . . Record 2 | . 2 . . . Fabricator Hacks . | . . . . . Repair Station Hacks . | . . . . . Recycling Unit Hacks . | . . . . . Scanalyzer . | . . . . . Garrison Access Hacks . | . . . . . Unauthorized Hacks . | . . . . . Terminals . | . . . . . Fabricators . | . . . . . Repair Stations . | . . . . . Recycling Units . | . . . . . Scanalyzers . | . . . . . Garrison Access . | . . . . . Data Cores Recovered . | . . . . . Used . | . . . . . Hacking Detections 2 | . 2 . . . Full Trace Events . | . . . . . Feedback Events . | . . . . . Feedback Blocked . | . . . . . Robot Schematics Acquired . | . . . . . Robots Built . | . . . . . Authchips . | . . . . . Time . | . . . . . Total Robot Build Rating . | . . . . . Part Schematics Acquired . | . . . . . Parts Built . | . . . . . Authchips . | . . . . . Time . | . . . . . Total Part Build Rating . | . . . . . Parts Repaired . | . . . . . Time . | . . . . . Parts Recycled . | . . . . . Recycled Matter . | . . . . . Retrieved Matter . | . . . . . Retrieved Components . | . . . . . Parts Scanalyzed . | . . . . . Part Schematics Acquired . | . . . . . Parts Damaged . | . . . . . Bothacking | -11 -10 -10 -10 -8 ------------ Run | Yrd Mat Min Sub Mat Used RIF Installer . | . . . . . Robots Hacked . | . . . . . Non-combat . | . . . . . Combat . | . . . . . Robot Hacks Applied . | . . . . . Relay Couplers Released . | . . . . . Fabnet Peak Effective % . | . . . . . Robots Rewired . | . . . . . Allies Hacked . | . . . . . Hacks Repelled . | . . . . . Allies | -11 -10 -10 -10 -8 -------- Run | Yrd Mat Min Sub Mat Total Allies . | . . . . . Largest Group . | . . . . . Highest-Rated Group . | . . . . . Highest-Rated Ally . | . . . . . Total Orders . | . . . . . Ally Attacks . | . . . . . Total Damage . | . . . . . Kills . | . . . . . Allies Corrupted . | . . . . . Allies Melted . | . . . . . Intel | -11 -10 -10 -10 -8 ------- Run | Yrd Mat Min Sub Mat Robot Analysis Total . | . . . . . Derelict Logs Recovered 3 | . . 2 1 . Drone Launches . | . . . . . Drone Recoveries . | . . . . . Exploration | -11 -10 -10 -10 -8 ------------- Run | Yrd Mat Min Sub Mat Turns Passed 2352 | 150 181 685 454 882 Spaces Moved 1478 | 103 118 539 302 416 Core 22 | 22 . . . . Treads 24 | . . . . 24 Legs 1432 | 81 118 539 302 392 Wheels . | . . . . . Hover . | . . . . . Flight . | . . . . . Fastest Speed 50 | 50 120 120 120 120 Average Speed 122 | 105 120 120 120 132 Slowest Speed 190 | 120 120 120 190 190 Overloaded Moves . | . . . . . Propulsion Burnouts . | . . . . . Robots Hopped . | . . . . . Cave-ins Triggered . | . . . . . Exploration Rate (%) 29 | 9 27 83 11 16 Regions Visited 4 Branch Regions 2 Pre-discovered Areas . | . . . . . Known Exits Taken . | . . . . . Unknown Exits Taken 4 | 1 1 1 1 . Scrap Searched . | . . . . . Spaces Dug . | . . . . . Terrain Destroyed 98 | . . . 95 3 Melee . | . . . . . Projectile 3 | . . . . 3 AOE 95 | . . . 95 . Terrain Rammed . | . . . . . Walls Destroyed . | . . . . . Machines Disabled . | . . . . . Actions | -11 -10 -10 -10 -8 --------- Run | Yrd Mat Min Sub Mat Total 1790 | 121 148 567 365 589 Wait 49 | . 12 4 15 18 Move 1474 | 102 117 538 301 416 Hop . | . . . . . Pick Up 40 | 2 7 5 12 14 Fast Attach 22 | 6 . 1 . 15 Attach 21 | 1 2 1 7 10 Detach 5 | . 1 . . 4 Swap 2 | . . . . 2 Drop 33 | . 3 6 7 17 Fire 131 | 10 6 6 23 86 Melee . | . . . . . Ram . | . . . . . Kick 13 | . . 6 . 7 Crush . | . . . . . Escape Stasis . | . . . . . Rewire . | . . . . . Trap . | . . . . . Miscellaneous . | . . . . . Route ------- -11/Scrapyard -10/Materials -10/Mines (discovered 2 exits: [*Mat] / [*Sub]) -10/Subcaves -8/Materials (discovered 1 exit: Fac) History --------- Turn | Location | Event 2 | -11/Scrapyard | Met Revision 17 84 | -11/Scrapyard | Discovered new exit (range 8) 151 | -11/Scrapyard | Entered Materials 296 | -10/Materials | Discovered new exit (range 9) 311 | -10/Materials | Build established: Mutant 332 | -10/Materials | Entered Mines 339 | -10/Mines | Received a Rocket Launcher from a helpful Derelict 386 | -10/Mines | Found a damaged Exp. Sensor Array with a note attached 389 | -10/Mines | Found Prototype Device 399 | -10/Mines | Identified Exp. Sensor Array 521 | -10/Mines | Learned 4 Materials zone layouts 560 | -10/Mines | Learned Materials stockpile data 667 | -10/Mines | Discovered new exit (range 6) 777 | -10/Mines | A weapon hastily lodged in a ceiling crevice suddenly fell to the ground 947 | -10/Mines | Discovered new exit (range 10) 1017 | -10/Mines | Entered Subcaves 1119 | -10/Subcaves | Ambushed by swarm of Subdwellers 1176 | -10/Subcaves | Lost 3 parts (1p1n1w) 1181 | -10/Subcaves | Lost 4 allies 1240 | -10/Subcaves | Ambushed by Subdweller buried in earth 1278 | -10/Subcaves | Lost 3 parts (1n2w) 1374 | -10/Subcaves | A swath of the cavern ceiling suddenly collapsed 1379 | -10/Subcaves | Learned Materials terminal intel 1418 | -10/Subcaves | Discovered new exit (range 14) 1446 | -10/Subcaves | Shifting Twisted Machinery released Sub. Optics 1471 | -10/Subcaves | Entered Materials 1471 | -8/Materials | Evolved 4 slots: Propulsion x2, Utility x2 1472 | -8/Materials | Identified exit to Factory 1474 | -8/Materials | Loaded intel: 12 terminal locations 1737 | -8/Materials | Lost 6 parts (1n2u3w) 1808 | -8/Materials | Garrison activated, responded to threat 1845 | -8/Materials | Lost 3 parts (2n1u) 2035 | -8/Materials | Build established: Scavenger-Mutant 2235 | -8/Materials | Garrison activated, responded to threat 2353 | -8/Materials | Self-destructed Last Messages --------------- 02337_ K-01 Serf collects debris. 02337_ Destroyed Imp. Hover Unit. 02337_ Slug penetrates W-25 Informer. 02337_ W-25 Informer destroyed. [Achievement: Please Form A Line] 02340_ Slug penetrates G-47 Trooper. 02341_ K-01 Serf collects debris. 02343_ Aluminum Leg destroyed. 02345_ Slug penetrates G-47 Trooper. 02345_ Adv. Beam Rifle severed. 02347_ Aluminum Leg destroyed. 02349_ Slug penetrates Terminal. 02349_ Terminal disabled. 02350_ Critical hit (Burn: +37). 02351_ Aluminum Leg destroyed. 02351_ Slug penetrates G-47 Trooper. 02351_ G-47 Trooper destroyed. 02352_ Acquired 19 matter. 02353_ K-01 Serf collects debris. 02353_ Gauss Rifle severed. Map ----- +----------------------------------------------------+ | ?????????????????????????????????????????????????? | | ?????????????????????????????????????????????????? | | ?????????????????????????????????????????????????? | | ?????????????????????????????????????????????????? | | ?????????????????????????????????????????????????? | | ?????????????????????????????????????????????????? | | ??????????????????#######+#####??????????????????? | | ??????????????????? ???????????????????? | | ??????????????????? ????????????????????? | | ??????????????????? ?????????????T??????? | | ???????????????????? ?????????????????????? | | ???????????????????? ??????????????????????? | | ????????????????????# #??????????????????????? | | ????????????????????# #??????????????????????? | | ????????????????????# #??????????????????????? | | ????????????????????# ##########?????????????? | | ????????????????????# * #?????????????? | | ?############???????#! ! ? #?????????????? | | ?#[ # #???????#%*= """ #?????????????? | | ?# # "#???????# [ !"""" #?????????????? | | ?# # T#???????#![=""""" #?????????????? | | ?# [] # ! "#???????##= """" #?????????????? | | ######+# #????????#%* " ] #?????????????? | | # T + + #????????#%k! ! #?????????????? | | # # # #???????##!k [%[== #?????????????? | | # # # *#???????# [ [@l!=%=! #?????????????? | | # # # #???????# =!%* == #?????????????? | | #[ # #########????# = = #?????????????? | | # [ # ## [=* #????# "" #?????????????? | | # # ## **=*#????# """ #?????????????? | | # # ## """[ #????# gg #?????????????? | | # # ##*"G*%!#????# #?????????????? | | ###### #=="""==#????# "" #???????????[?? | | ?????# ##[*% %%#????# """"" #?????????????? | | ?????# #####+########Y """"" #?????????????? | | ?????# =[ %%%? """"" T#?????????????? | | ?????#######%######## """ "#?????????????? | | ?????????###/######## ? #?????????????? | | ?????????# [** ## #?????????????? | | ???####### ###########%" #?????????????? | | ???# # #??????????" #?????????????? | | ???# ! =#% #?????????? ? ??????????????? | | ???# %+* #?????????? ??????????????????? | | ???# % [# #?????????????????????????????? | | ???# # #?????????????????????????????? | | ???## ## #?????????????????????????????? | | ????# ############?????????????????"T"?????????? | | ????# * #????????????????????????????????????????? | | ????# =*#????????????????????????????????????????? | | ????# #????????????????????????????????????????? | +----------------------------------------------------+ Best States ------------- Heat Dissipation 67 Energy Generation 14 Energy Capacity 275 Matter Stores 348 Matter Capacity 400 Sight Range 16 Robot Scan Range 20 Terrain Scan Range 16 Terrain Scan Density 10 Armor Coverage 800 Evasion (%) 55 Recoil Reduction 1 Offensive Hacking 10 Item Schematics ----------------- None Robot Schematics ------------------ None Fabricated ------------ Nothing Alien Tech Used ----------------- None Achievements -------------- Crack Shot Please Form A Line Risk Taker Troublemaker Challenges ------------ None Game ------ Seed MicroPlatingLoader Manual? 0 Play Time 00:57:28 Cumulative 1.4 hours Start 2024.09.02 @ 21:03:30 End 2024.09.03 @ 20:01:19 Sessions 6 Manual Loads 0 Difficulty Rogue Special Mode None Game No. 2 Rogue 2 Adventurer 0 Explorer 0 Win Type - Total 0 Types 0/0/0/0/0/0/0/0/0 Lore% 0 Gallery% 3 Achievement% 2 Wizard Run 0 Options --------- Layout 1 ASCII 1 Keyboard 1 Movement Numpad Keybinds 0 Fullscreen 2 Font 32/Tamsyn Map View 50x40 Zoom Use 0% Tactical HUD 1 Map Filters NONE Filters NONE Steam 1 RUN: 73daaa9a-c75e-4033-b9d7-5e2272b02ed4